fUST/lending_fUST_20250311
["ID","MTS","AMOUNT","RATE_DAILY","PERIOD"]
[355895931,1741693862027,-893.83,0.00033424,7]
[355895932,1741693862037,-794.48,0.00033424,7]
[355895933,1741693862047,-500.0,0.00033424,7]
[355895934,1741693862057,-5606.8,0.00033424,7]
[355895935,1741693862067,-597.49,0.00033424,7]
[355895936,1741693862076,-937.7,0.00033424,7]
[355895937,1741693862086,-500.0,0.00033424,7]
[355895938,1741693862096,-1569.23,0.00033424,7]
[355895939,1741693862105,-2192.56,0.00033424,7]
[355895940,1741693862115,-500.0,0.00033424,7]
[355895941,1741693862126,-500.0,0.00033424,7]
[355895942,1741693862136,-523.0871593,0.00033424,7]
[355895943,1741693862147,-1864.01,0.00033424,7]
[355895944,1741693862160,-7718.38,0.00033424,7]
[355895945,1741693862171,-860.11,0.00033424,7]
[355895946,1741693862181,-1264.01,0.00033424,7]
[355895947,1741693862192,-564.35166207,0.00033424,7]
[355895948,1741693862202,-1311.26,0.00033424,7]
[355895949,1741693862212,-507.92,0.00033424,7]
[355895950,1741693862222,-1098.83,0.00033424,7]
[355895951,1741693862233,-180220.75,0.00033424,7]
[355895952,1741693862243,-500.0,0.00033424,7]
[355895953,1741693862254,-500.0,0.00033424,7]
[355895954,1741693862264,-1489.5,0.00033424,7]
[355895955,1741693862274,-1061.34,0.00033424,7]
[355895956,1741693862284,-500.0,0.00033424,7]
[355895957,1741693862294,-500.0,0.00033424,7]
[355895958,1741693862303,-500.0,0.00033424,7]
[355895959,1741693862312,-1317.81,0.00033424,7]
[355895960,1741693862322,-500.0,0.00033424,7]
[355895961,1741693862331,-1369.42,0.00033424,7]
[355895962,1741693862341,-728.56,0.00033424,7]
[355895963,1741693862350,-1409.57,0.00033424,7]
[355895964,1741693862359,-500.0,0.00033424,7]
[355895965,1741693862369,-500.0,0.00033424,7]
[355895966,1741693862379,-500.0,0.00033424,7]
[355895967,1741693862388,-826.4,0.00033424,7]
[355895968,1741693862399,-500.0,0.00033424,7]
[355895969,1741693862411,-910.57,0.00033424,7]
[355895970,1741693862421,-1437.01,0.00033424,7]
[355895971,1741693862431,-607.78,0.00033424,7]
[355895972,1741693862440,-3752.15,0.00033424,7]
[355895973,1741693862449,-500.0,0.00033424,7]
[355895974,1741693862458,-500.0,0.00033424,7]
[355895975,1741693862467,-228.04116879,0.00033424,7]
[355895976,1741693862477,-905.84,0.00033424,7]
[355895977,1741693862486,-608.21,0.00033424,7]
[355895978,1741693862495,-810.39,0.00033424,7]
[355895979,1741693862504,-1158.64,0.00033424,7]
[355895980,1741693862513,-332.06571163,0.00033424,7]
[355895981,1741693862522,-1122.41,0.00033424,7]
[355895982,1741693862532,-6967.19,0.00033424,7]
[355895983,1741693862541,-23603.54,0.00033424,7]
[355895984,1741693862550,-500.0,0.00033424,7]
[355895985,1741693862559,-2753.87,0.00033424,7]
[355895986,1741693862569,-1061.27,0.00033424,7]
[355895987,1741693862579,-5699.02,0.00033424,7]
[355895988,1741693862588,-220.6632637,0.00033424,7]
[355895989,1741693862598,-828.28,0.00033424,7]
[355895990,1741693862607,-500.0,0.00033424,7]
[355895991,1741693862617,-1551.34,0.00033424,7]
[355895992,1741693862627,-500.0,0.00033424,7]
[355895993,1741693862636,-500.0,0.00033424,7]
[355895994,1741693862646,-500.0,0.00033424,7]
[355895995,1741693862658,-500.0,0.00033424,7]
[355895996,1741693862668,-500.0,0.00033424,7]
[355895997,1741693862677,-1491.39,0.00033424,7]
[355895998,1741693862687,-3161.81,0.00033424,7]
[355895999,1741693862696,-500.0,0.00033424,7]
[355896000,1741693862706,-500.0,0.00033424,7]
[355896001,1741693862716,-500.0,0.00033424,7]
[355896002,1741693862726,-500.0,0.00033424,7]
[355896003,1741693862736,-500.0,0.00033424,7]
[355896004,1741693862746,-209.86266238,0.00033424,7]
[355896005,1741693862755,-500.0,0.00033424,7]
[355896006,1741693862765,-500.0,0.00033424,7]
[355896007,1741693862775,-6215.66,0.00033424,7]
[355896008,1741693862785,-500.0,0.00033424,7]
[355896009,1741693862795,-500.0,0.00033424,7]
[355896010,1741693862804,-1755.39,0.00033424,7]
[355896011,1741693862814,-620.95,0.00033424,7]
[355896012,1741693862828,-1515.18,0.00033424,7]
[355896013,1741693862837,-845.87,0.00033424,7]
[355896014,1741693862846,-500.0,0.00033424,7]
[355896015,1741693862856,-500.0,0.00033424,7]
[355896016,1741693862866,-595.5,0.00033424,7]
[355896017,1741693862875,-941.02,0.00033424,7]
[355896018,1741693862885,-500.0,0.00033424,7]
[355896019,1741693862894,-500.0,0.00033424,7]
[355896020,1741693863010,-500.0,0.00033424,7]
[355896021,1741693863020,-544.21,0.00033424,7]
[355896022,1741693863030,-500.0,0.00033424,7]
[355896023,1741693863039,-3355.07,0.00033424,7]
[355896024,1741693863049,-1091.02,0.00033424,7]
[355896025,1741693863059,-865.43,0.00033424,7]
[355896026,1741693863068,-983.16,0.00033424,7]
[355896027,1741693863078,-3637.15,0.00033424,7]
[355896028,1741693863088,-4582.79,0.00033424,7]
[355896029,1741693863098,-500.0,0.00033424,7]
[355896030,1741693863108,-500.0,0.00033424,7]
[355896031,1741693863118,-3746.84,0.00033424,7]
[355896032,1741693863128,-622.19,0.00033424,7]
[355896033,1741693863137,-532.2337279,0.00033424,7]
[355896034,1741693863148,-500.0,0.00033424,7]
[355896035,1741693863161,-828.24,0.00033424,7]
[355896036,1741693863171,-1794.71,0.00033424,7]
[355896037,1741693863181,-500.0,0.00033424,7]
[355896038,1741693863192,-317.43756647,0.00033424,7]
[355896039,1741693863202,-821.4,0.00033424,7]
[355896040,1741693863212,-500.0,0.00033424,7]
[355896041,1741693863224,-1425.51,0.00033424,7]
[355896042,1741693863235,-500.0,0.00033424,7]
[355896043,1741693863245,-500.0,0.00033424,7]
[355896044,1741693863256,-500.0,0.00033424,7]
[355896045,1741693863266,-1320.53,0.00033424,7]
[355896046,1741693863276,-500.0,0.00033424,7]
[355896047,1741693863286,-1125.71,0.00033424,7]
[355896048,1741693863296,-500.0,0.00033424,7]
[355896049,1741693863306,-500.0,0.00033424,7]
[355896050,1741693863315,-500.0,0.00033424,7]
[355896051,1741693863327,-500.0,0.00033424,7]
[355896052,1741693863338,-269.51361727,0.00033424,7]
[355896053,1741693863347,-500.0,0.00033424,7]
[355896054,1741693863357,-1137.53,0.00033424,7]
[355896055,1741693863366,-1376.66,0.00033424,7]
[355896056,1741693863376,-1444.21,0.00033424,7]
[355896057,1741693863386,-7116.89,0.00033424,7]
[355896058,1741693863397,-500.0,0.00033424,7]
[355896059,1741693863409,-889.73,0.00033424,7]
[355896060,1741693863419,-500.0,0.00033424,7]
[355896061,1741693863429,-965.61,0.00033424,7]
[355896062,1741693863438,-500.0,0.00033424,7]
[355896063,1741693863448,-905.96,0.00033424,7]
[355896064,1741693863458,-500.0,0.00033424,7]
[355896065,1741693863467,-2156.15,0.00033424,7]
[355896066,1741693863477,-500.0,0.00033424,7]
[355896067,1741693863486,-180.39667289,0.00033424,7]
[355896068,1741693863496,-500.0,0.00033424,7]
[355896069,1741693863505,-500.0,0.00033424,7]
[355896070,1741693863515,-986.55,0.00033424,7]
[355896071,1741693863525,-1378.11,0.00033424,7]
[355896072,1741693863535,-500.0,0.00033424,7]
[355896073,1741693863545,-1399.68,0.00033424,7]
[355896074,1741693863555,-500.0,0.00033424,7]
[355896075,1741693863565,-569.56302705,0.00033424,7]
[355896076,1741693863574,-500.0,0.00033424,7]
[355896077,1741693863583,-1173.88,0.00033424,7]
[355896078,1741693863593,-712.69,0.00033424,7]
[355896079,1741693863603,-500.0,0.00033424,7]
[355896080,1741693863612,-500.0,0.00033424,7]
[355896081,1741693863621,-500.0,0.00033424,7]
[355896082,1741693863631,-1037.77,0.00033424,7]
[355896083,1741693863641,-518.93170362,0.00033424,7]
[355896084,1741693863651,-1231.45,0.00033424,7]
[355896085,1741693863661,-6223.0,0.00033424,7]
[355896086,1741693863672,-883.62,0.00033424,7]
[355896087,1741693863681,-500.0,0.00033424,7]
[355896088,1741693863702,-220.45551421,0.00033424,7]
[355896089,1741693863722,-1055.92,0.00033424,7]
[355896090,1741693863742,-903.3,0.00033424,7]
[355896091,1741693863765,-500.0,0.00033424,7]
[355896092,1741693863785,-500.0,0.00033424,7]
[355896093,1741693863804,-538.64,0.00033424,7]
[355896094,1741693863822,-6586.59,0.00033424,7]
[355896095,1741693863841,-500.0,0.00033424,7]
[355896096,1741693863863,-200.0,0.00033424,7]
[355896097,1741693863885,-500.0,0.00033424,7]
[355896098,1741693863901,-500.0,0.00033424,7]
[355896099,1741693863922,-500.0,0.00033424,7]
[355896100,1741693863938,-788.72,0.00033424,7]
[355896101,1741693863958,-500.0,0.00033424,7]
[355896102,1741693863972,-500.0,0.00033424,7]
[355896103,1741693863989,-1659.94,0.00033424,7]
[355896104,1741693864007,-3068.76,0.00033424,7]
[355896105,1741693864023,-594.34,0.00033424,7]
[355896106,1741693864040,-500.0,0.00033424,7]
[355896107,1741693864057,-500.0,0.00033424,7]
[355896108,1741693864074,-500.0,0.00033424,7]
[355896109,1741693864092,-500.0,0.00033424,7]
[355896110,1741693864110,-506.33,0.00033424,7]
[355896111,1741693864127,-500.0,0.00033424,7]
[355896112,1741693864144,-773.8,0.00033424,7]
[355896113,1741693864163,-570.02,0.00033424,7]
[355896114,1741693864181,-500.0,0.00033424,7]
[355896115,1741693864198,-21525.75,0.00033424,7]
[355896116,1741693864215,-500.0,0.00033424,7]
[355896117,1741693864232,-500.0,0.00033424,7]
[355896118,1741693864250,-894.78268339,0.00033451,2]
[355896119,1741693864268,-927.88964268,0.00033506,2]
[355896120,1741693864286,-962.22155946,0.00033561,2]
[355896121,1741693864303,-997.82375716,0.00033616,2]
[355896122,1741693864320,-1366.48632725,0.0003363,2]
[355896123,1741693864339,-1034.74323617,0.00033671,2]
[355896124,1741693864356,-515.68863725,0.00033698,7]
[355896125,1741693864372,-500.0,0.00033698,7]
[355896126,1741693864388,-500.0,0.00033698,7]
[355896127,1741693864407,-500.0,0.00033698,7]
[355896128,1741693864424,-500.0,0.00033698,7]
[355896129,1741693864443,-1242.05,0.00033698,7]
[355896130,1741693864461,-679.02,0.00033698,7]
[355896131,1741693864480,-500.0,0.00033698,7]
[355896132,1741693864496,-500.0,0.00033698,7]
[355896133,1741693864513,-500.0,0.00033698,7]
[355896134,1741693864530,-500.0,0.00033698,7]
[355896135,1741693864547,-500.0,0.00033698,7]
[355896136,1741693864565,-558.3,0.00033698,7]
[355896137,1741693864582,-500.0,0.00033698,7]
[355896138,1741693864599,-500.0,0.00033698,7]
[355896139,1741693864615,-549.89586002,0.00033698,7]
[355896140,1741693864633,-547.44458086,0.00033698,7]
[355896141,1741693864649,-500.0,0.00033698,7]
[355896142,1741693864666,-569.90161254,0.00033698,7]
[355896143,1741693864682,-500.0,0.00033698,7]
[355896144,1741693864698,-500.0,0.00033698,7]
[355896145,1741693864715,-594.52,0.00033698,7]
[355896146,1741693864732,-779.61,0.00033698,7]
[355896147,1741693864749,-577.86,0.00033698,7]
[355896148,1741693864766,-500.0,0.00033698,7]
[355896149,1741693864782,-1087.15,0.00033698,7]
[355896150,1741693864799,-822.72,0.00033698,7]
[355896151,1741693864816,-500.0,0.00033698,7]
[355896152,1741693864837,-500.0,0.00033698,7]
[355896153,1741693864853,-747.54,0.00033698,7]
[355896154,1741693864870,-500.0,0.00033698,7]
[355896155,1741693864887,-500.0,0.00033698,7]
[355896156,1741693865069,-500.0,0.00033698,7]
[355896157,1741693865079,-500.0,0.00033698,7]
[355896158,1741693865089,-500.0,0.00033698,7]
[355896159,1741693865099,-547.20015439,0.00033698,7]
[355896160,1741693865109,-558.71216247,0.00033698,7]
[355896161,1741693865119,-500.0,0.00033698,7]
[355896162,1741693865129,-500.0,0.00033698,7]
[355896163,1741693865139,-500.0,0.00033698,7]
[355896164,1741693865149,-500.0,0.00033698,7]
[355896165,1741693865159,-500.0,0.00033698,7]
[355896166,1741693865169,-500.0,0.00033698,7]
[355896167,1741693865179,-500.0,0.00033698,7]
[355896168,1741693865188,-548.39188292,0.00033698,7]
[355896169,1741693865198,-728.65,0.00033698,7]
[355896170,1741693865207,-500.0,0.00033698,7]
[355896171,1741693865217,-532.68634732,0.00033698,7]
[355896172,1741693865227,-500.0,0.00033698,7]
[355896173,1741693865236,-500.0,0.00033698,7]
[355896174,1741693865245,-186.46132997,0.00033698,7]
[355896175,1741693865255,-729.06,0.00033698,7]
[355896176,1741693865265,-500.0,0.00033698,7]
[355896177,1741693865275,-669.14,0.00033698,7]
[355896178,1741693865286,-500.0,0.00033698,7]
[355896179,1741693865296,-500.0,0.00033698,7]
[355896180,1741693865305,-892.4,0.00033698,7]
[355896181,1741693865315,-500.0,0.00033698,7]
[355896182,1741693865324,-500.0,0.00033698,7]
[355896183,1741693865334,-525.03036861,0.00033698,7]
[355896184,1741693865344,-500.0,0.00033698,7]
[355896185,1741693865356,-474.44828635,0.00033698,7]
[355896186,1741693865366,-921.84,0.00033698,7]
[355896187,1741693865375,-500.0,0.00033698,7]
[355896188,1741693865385,-500.0,0.00033698,7]
[355896189,1741693865394,-500.0,0.00033698,7]
[355896190,1741693865406,-523.42576139,0.00033698,7]
[355896191,1741693865415,-500.0,0.00033698,7]
[355896192,1741693865425,-500.0,0.00033698,7]
[355896193,1741693865434,-500.0,0.00033698,7]
[355896194,1741693865444,-500.0,0.00033698,7]
[355896195,1741693865454,-500.0,0.00033698,7]
[355896196,1741693865463,-1238.26,0.00033698,7]
[355896197,1741693865473,-500.0,0.00033698,7]
[355896198,1741693865482,-531.72422383,0.00033698,7]
[355896199,1741693865491,-541.66252065,0.00033698,7]
[355896200,1741693865502,-534.72033864,0.00033698,7]
[355896201,1741693865512,-109.98386819,0.00033698,7]
[355896202,1741693867636,-500.0,0.00032526,2]
[355896203,1741693867646,-500.0,0.00032526,2]
[355896204,1741693867657,-500.0,0.00032526,2]
[355896205,1741693867666,-500.0,0.00032526,2]
[355896206,1741693867678,-500.0,0.00032526,2]
[355896207,1741693867688,-500.0,0.00032526,2]
[355896208,1741693867698,-500.0,0.00032526,2]
[355896209,1741693867708,-500.0,0.00032526,2]
[355896210,1741693867719,-500.0,0.00032526,2]
[355896211,1741693867729,-500.0,0.00032526,2]
[355896212,1741693867740,-500.0,0.00032526,2]
[355896213,1741693867749,-500.0,0.00032526,2]
[355896214,1741693867759,-500.0,0.00032526,2]
[355896215,1741693867769,-500.0,0.00032526,2]
[355896216,1741693867779,-500.0,0.00032526,2]
[355896217,1741693867789,-500.0,0.00032526,2]
[355896218,1741693867798,-500.0,0.00032526,2]
[355896219,1741693867808,-500.0,0.00032526,2]
[355896220,1741693867820,-500.0,0.00032526,2]
[355896221,1741693867831,-500.0,0.00032526,2]
[355896222,1741693867842,-500.0,0.00032526,2]
[355896223,1741693867852,-500.0,0.00032526,2]
[355896224,1741693867863,-500.0,0.00032526,2]
[355896225,1741693867872,-500.0,0.00032526,2]
[355896226,1741693867882,-327.82428634,0.00032526,2]
[355896227,1741693902519,-159.58505571,0.000252,2]
[355896229,1741694025978,160.0,0.0002,3]
[355896230,1741694329272,160.0,0.0002,3]
[355896231,1741694555137,-500.0,0.00032876,120]
[355896232,1741694555185,-500.0,0.0003315,120]
[355896233,1741694555234,-500.0,0.00033424,120]
[355896234,1741694555280,-500.0,0.00033698,120]
[355896235,1741694555325,-500.0,0.00033972,120]
[355896236,1741694555368,-500.0,0.00034246,120]
[355896237,1741694555410,-340.82829831,0.0003452,120]
[355896238,1741694555524,-1000.0,0.00036,120]
[355896239,1741694555589,-500.0,0.00036986,120]
[355896240,1741694555612,-500.0,0.00036986,120]
[355896241,1741694555637,-500.0,0.00036986,120]
[355896242,1741694555699,-1000.0,0.00038,120]
[355896243,1741694555778,-2175.46,0.0003959,120]
[355896244,1741694555800,-1000.0,0.000398,120]
[355896245,1741694555824,-1000.0,0.0004,120]
[355896246,1741694555845,-12746.41990607,0.0004,120]
[355896247,1741694555865,-17282.54162844,0.0004,120]
[355896248,1741694555888,-160.0,0.0004,120]
[355896249,1741694555908,-416.66666667,0.0004,120]
[355896250,1741694562368,-322.67813728,0.000362,98]
[355896251,1741694562390,-322.67813725,0.000362,98]
[355896252,1741694562412,-322.67813725,0.000362,98]
[355896253,1741694562443,-322.67813725,0.000362,98]
[355896254,1741694562526,-322.67813725,0.0003716,103]
[355896255,1741694562605,-1000.0,0.00038356,90]
[355896256,1741694562627,-1000.0,0.00038356,90]
[355896257,1741694562648,-1000.0,0.00038356,90]
[355896258,1741694562671,-374.42710858,0.00038356,90]
[355896259,1741694562745,-202.159286,0.00039729,60]
[355896260,1741694562769,-378.9,0.0004,60]
[355896261,1741694562791,-5000.0,0.0004,90]
[355896262,1741694567626,-769.34834918,0.00029,30]
[355896263,1741694567652,-700.0,0.00029,30]
[355896264,1741694567680,-1046.67435174,0.00032875,30]
[355896265,1741694567723,-807.3223852,0.000329,30]
[355896266,1741694567745,-453.09,0.000329,30]
[355896267,1741694567766,-6542.38,0.000329,30]
[355896268,1741694567787,-1516.06,0.000329,30]
[355896269,1741694567809,-500.99,0.000329,30]
[355896270,1741694567831,-416.66666667,0.000329,30]
[355896271,1741694567919,-258.5511113,0.00033699,30]
[355896272,1741694567960,-178.31372335,0.00033973,30]
[355896273,1741694567982,-500.99,0.00034,30]
[355896274,1741694568003,-178.31372335,0.00034137,30]
[355896275,1741694568044,-178.31372335,0.00034301,30]
[355896276,1741694568066,-155.417131,0.00034385,30]
[355896277,1741694568092,-155.417131,0.00034385,30]
[355896278,1741694568119,-155.417131,0.00034385,30]
[355896279,1741694568142,-155.417131,0.00034385,30]
[355896280,1741694568165,-453.09,0.000344,30]
[355896281,1741694568188,-6542.38,0.000344,30]
[355896282,1741694568212,-1516.06,0.000344,30]
[355896283,1741694568236,-186.62806455,0.00034411,30]
[355896284,1741694568262,-178.31372335,0.00034466,30]
[355896285,1741694568302,-178.31372335,0.0003463,30]
[355896286,1741694568342,-178.31372335,0.00034795,30]
[355896287,1741694568364,-186.62806459,0.00034877,30]
[355896288,1741694568385,-186.62806455,0.00034877,30]
[355896289,1741694568407,-178.31372335,0.00034959,30]
[355896290,1741694568444,-500.99,0.000351,30]
[355896291,1741694568465,-178.31372335,0.00035123,30]
[355896292,1741694568487,-330.1317113,0.00035193,30]
[355896293,1741694568509,-559.4225717,0.00035193,30]
[355896294,1741694568531,-559.4225717,0.00035193,30]
[355896295,1741694568552,-178.31372335,0.00035288,30]
[355896296,1741694568590,-453.09,0.000354,30]
[355896297,1741694568613,-6542.38,0.000354,30]
[355896298,1741694568635,-1516.06,0.000354,30]
[355896299,1741694568656,-178.31372335,0.00035452,30]
[355896300,1741694568679,-5089.83,0.000355,30]
[355896301,1741694568715,-153.0,0.00035616,30]
[355896302,1741694568737,-465.9840081,0.00035616,30]
[355896303,1741694568759,-155.417131,0.00035616,30]
[355896304,1741694568780,-155.417131,0.00035616,30]
[355896305,1741694568804,-742.3052627,0.00035616,30]
[355896306,1741694568828,-178.31372335,0.00035616,30]
[355896307,1741694568850,-178.31372335,0.00035781,30]
[355896308,1741694568891,-166.8803818,0.0003589,30]
[355896309,1741694568917,-1149.5972613,0.00036015,30]
[355896310,1741694568943,-559.4225717,0.00036015,30]
[355896311,1741694568965,-962.7679575,0.00036015,30]
[355896312,1741694568988,-559.4225717,0.00036015,30]
[355896313,1741694569011,-559.4225717,0.00036015,30]
[355896314,1741694569038,-559.4225717,0.00036015,30]
[355896315,1741694569059,-559.4225717,0.00036015,30]
[355896316,1741694569082,-559.4225717,0.00036015,30]
[355896317,1741694569105,-500.99,0.000361,30]
[355896318,1741694569141,-356.9896343,0.00036164,30]
[355896319,1741694569164,-356.9896343,0.00036164,30]
[355896320,1741694569187,-224.2436163,0.00036164,30]
[355896321,1741694569216,-155.4171311,0.00036164,30]
[355896322,1741694569241,-356.9896343,0.00036164,30]
[355896323,1741694569280,-153.0,0.00036438,30]
[355896324,1741694569306,-153.0,0.00036438,30]
[355896325,1741694569332,-167.8448478,0.00036438,30]
[355896326,1741694569358,-167.8448478,0.00036438,30]
[355896327,1741694569386,-5089.83,0.000365,30]
[355896328,1741694569412,-453.09,0.000365,30]
[355896329,1741694569438,-6542.38,0.000365,30]
[355896330,1741694569466,-1516.06,0.000365,30]
[355896331,1741694569507,-310.5583449,0.00036869,30]
[355896332,1741694569548,-481.432,0.0003699,47]
[355896333,1741694569573,-96170.55918799,0.00037,30]
[355896334,1741694569612,-155.3619476,0.0003726,30]
[355896335,1741694569636,-167.7484012,0.0003726,30]
[355896336,1741694569669,-5089.83,0.000373,30]
[355896337,1741694569695,-500.99,0.000373,30]
[355896338,1741694569731,-412.68361,0.00037659,30]
[355896339,1741694569755,-167.8448478,0.00037664,30]
[355896340,1741694569788,-453.09,0.000379,30]
[355896341,1741694569810,-6542.38,0.000379,30]
[355896342,1741694569834,-1516.06,0.000379,30]
[355896343,1741694569867,-5089.83,0.000381,30]
[355896344,1741694569892,-500.0,0.00038356,30]
[355896345,1741694569924,-500.0,0.0003863,31]
[355896346,1741694569960,-500.99,0.000387,30]
[355896347,1741694569985,-500.0,0.00038904,32]
[355896348,1741694570021,-453.09,0.000391,30]
[355896349,1741694570049,-6542.38,0.000391,30]
[355896350,1741694570250,-1516.06,0.000391,30]
[355896351,1741694570275,-500.0,0.00039178,33]
[355896352,1741694570300,-205.21995156,0.00039178,33]
[355896353,1741694570321,-150.36,0.00039178,33]
[355896354,1741694570344,-150.36,0.00039178,33]
[355896355,1741694570365,-150.36,0.00039178,33]
[355896356,1741694570387,-152.56905015,0.00039178,33]
[355896357,1741694570411,-500.0,0.00039178,33]
[355896358,1741694570434,-500.0,0.00039178,33]
[355896359,1741694570456,-500.0,0.00039178,33]
[355896360,1741694570478,-500.0,0.00039178,33]
[355896361,1741694570501,-500.0,0.00039178,33]
[355896362,1741694570524,-500.0,0.00039178,33]
[355896363,1741694570547,-500.0,0.00039178,33]
[355896364,1741694570569,-500.0,0.00039178,33]
[355896365,1741694570593,-500.0,0.00039178,33]
[355896366,1741694570614,-500.0,0.00039178,33]
[355896367,1741694570635,-500.0,0.00039178,33]
[355896368,1741694570658,-500.0,0.00039178,33]
[355896369,1741694570679,-500.0,0.00039178,33]
[355896370,1741694570701,-500.0,0.00039178,33]
[355896371,1741694570724,-500.0,0.00039178,33]
[355896372,1741694570746,-601.3082829,0.00039178,33]
[355896373,1741694570767,-2110.0,0.00039178,33]
[355896374,1741694570789,-2110.0,0.00039178,33]
[355896375,1741694570810,-2110.0,0.00039178,33]
[355896376,1741694570834,-2110.0,0.00039178,33]
[355896377,1741694570855,-2110.0,0.00039178,33]
[355896378,1741694570876,-2110.0,0.00039178,33]
[355896379,1741694570898,-2110.0,0.00039178,33]
[355896380,1741694570919,-2110.0,0.00039178,33]
[355896381,1741694570941,-2110.0,0.00039178,33]
[355896382,1741694570965,-2110.0,0.00039178,33]
[355896383,1741694570987,-2110.0,0.00039178,33]
[355896384,1741694571009,-2110.0,0.00039178,33]
[355896385,1741694571035,-2110.0,0.00039178,33]
[355896386,1741694571057,-2110.0,0.00039178,33]
[355896387,1741694571082,-2110.0,0.00039178,33]
[355896388,1741694571105,-2110.0,0.00039178,33]
[355896389,1741694571128,-2110.0,0.00039178,33]
[355896390,1741694571150,-2110.0,0.00039178,33]
[355896391,1741694571173,-2110.0,0.00039178,33]
[355896392,1741694571203,-2110.6053578,0.00039178,33]
[355896393,1741694571225,-150.36,0.00039178,33]
[355896394,1741694571249,-150.36,0.00039178,33]
[355896395,1741694571271,-281.15397709,0.00039178,33]
[355896396,1741694571294,-500.0,0.00039178,33]
[355896397,1741694571317,-698.69283656,0.00039178,33]
[355896398,1741694571346,-150.36,0.00039178,33]
[355896399,1741694571369,-150.36,0.00039178,33]
[355896400,1741694571393,-272.58063522,0.00039178,33]
[355896401,1741694571416,-159.30893771,0.00039178,33]
[355896402,1741694571439,-150.36,0.00039178,33]
[355896403,1741694571460,-150.36,0.00039178,33]
[355896404,1741694571483,-198.09636862,0.00039178,33]
[355896405,1741694571512,-500.0,0.00039452,34]
[355896406,1741694571535,-500.99,0.000397,30]
[355896407,1741694571559,-500.0,0.00039726,35]
[355896408,1741694571585,-500.0,0.00039999,31]
[355896409,1741694571606,-557.08958595,0.00039999,31]
[355896410,1741694571627,-500.0,0.00039999,31]
[355896411,1741694571657,-500.0,0.00039999,31]
[355896412,1741694571679,-500.0,0.00039999,31]
[355896413,1741694571700,-500.0,0.00039999,31]
[355896414,1741694571722,-383.32222713,0.00039999,31]
[355896415,1741694571744,-216.72622392,0.00039999,31]
[355896416,1741694571767,-10000.0,0.0004,40]
[355896417,1741694571787,-118939.00617373,0.0004,30]
[355896418,1741694571808,-190.0,0.0004,30]
[355896419,1741694571833,-500.0,0.0004,36]
[355896420,1741694580435,-2865.41494429,0.000252,2]
[355896421,1741694580459,-2179.83257655,0.000299,5]
[355896422,1741694580481,-500.0,0.00029953,2]
[355896423,1741694580503,-504.06820665,0.00031324,2]
[355896424,1741694580526,-2020.27171815,0.00032694,2]
[355896426,1741694606100,-151.0,0.000328,20]
[355896427,1741694619233,-24900.0,0.00031597,2]
[355896428,1741694619259,-1950.25945972,0.00032664,2]
[355896429,1741694619281,-2095.87712986,0.00032694,2]
[355896430,1741694619305,-150.82,0.00032756,2]
[355896431,1741694619328,-70752.04341042,0.00032756,2]
[355896433,1741694654491,2435.78693242,0.00025011,2]